bitfinex/quotes_BTCUSD_20260221
["timestamp","ask_amount","ask_price","bid_price","bid_amount"]
[1771691263858,0.001,68250.0,68244.0,0.0732662]
[1771691264203,0.00026285,68256.0,68247.0,0.07326237]
[1771691264429,0.0735173,68256.0,68248.0,0.0732622]
[1771691264667,0.001,68255.0,68249.0,0.0732606]
[1771691264879,0.00026285,68256.0,68250.0,0.09797779]
[1771691265086,0.07325047,68259.0,68251.0,0.07325891]
[1771691265298,0.00324511,68265.0,68240.0,0.0230932]
[1771691265299,0.11919262,68280.0,68260.0,0.02471873]
[1771691265495,0.11919262,68280.0,68250.0,0.00016]
[1771691265496,0.01381577,68265.0,68250.0,0.00016]
[1771691265621,0.01381577,68265.0,68255.0,0.07325445]
[1771691265622,0.0732465,68263.0,68255.0,0.07325445]
[1771691265834,0.07325025,68260.0,68252.0,0.07325772]
[1771691266042,0.07324831,68261.0,68253.0,0.07325664]
[1771691266262,0.07324727,68262.0,68252.0,0.07325781]
[1771691266629,0.00324511,68264.0,68251.0,0.073258]
[1771691266630,0.07649074,68264.0,68251.0,0.07325899]
[1771691266809,0.07324563,68264.0,68255.0,0.0732537]
[1771691266987,0.001,68256.0,68255.0,0.0732537]
[1771691267188,0.08705999,68265.0,68257.0,0.07325224]
[1771691267391,0.01381577,68265.0,68258.0,0.07325065]
[1771691267591,0.08705976,68265.0,68258.0,0.07325065]
[1771691268199,0.001,68263.0,68259.0,0.02471873]
[1771691268730,0.01381577,68265.0,68259.0,0.02471873]
[1771691268933,0.01481577,68265.0,68259.0,0.02471873]
[1771691269133,0.0002925,68266.0,68259.0,0.32887656]
[1771691269363,0.07353553,68266.0,68260.0,0.02471873]
[1771691269564,0.0002925,68266.0,68260.0,0.02471873]
[1771691270083,0.07353545,68266.0,68260.0,0.02471873]
[1771691270298,0.00336,68270.0,68262.0,0.02471873]
[1771691270502,0.00336,68270.0,68259.0,0.07324955]
[1771691270704,0.07324148,68268.0,68260.0,0.07324842]
[1771691270940,0.07659916,68270.0,68257.0,0.29300844]
[1771691271141,0.07324078,68268.0,68260.0,0.0732483]
[1771691271389,0.07324078,68268.0,68261.0,0.07324815]
[1771691271825,0.00336,68270.0,68262.0,0.02471873]
[1771691271998,0.07323546,68273.0,68264.0,0.09796346]
[1771691272156,0.07323721,68272.0,68264.0,0.09796293]
[1771691274059,0.00011689,68273.0,68265.0,0.30415783]
[1771691274258,0.07323158,68277.0,68269.0,0.02471873]
[1771691274445,0.07323248,68276.0,68271.0,0.02471873]
[1771691274646,0.07323033,68278.0,68270.0,0.30415783]
[1771691274845,0.07323033,68278.0,68269.0,0.02471873]
[1771691275151,0.00316,68280.0,68273.0,0.07323517]
[1771691275356,0.00316,68280.0,68273.0,0.09807079]
[1771691275558,0.00316,68280.0,68274.0,0.07323392]
[1771691276218,0.00316,68280.0,68275.0,0.07323259]
[1771691276461,0.0002925,68282.0,68278.0,0.07322973]
[1771691276669,0.0732223,68286.0,68279.0,0.02471873]
[1771691276875,0.07322262,68285.0,68279.0,0.02471873]
[1771691277198,0.07321972,68288.0,68279.0,0.02471873]
[1771691277395,0.07322047,68287.0,68280.0,0.30415783]
[1771691277594,0.07322047,68287.0,68280.0,0.32887656]
[1771691277805,0.07321972,68288.0,68280.0,0.32887656]
[1771691278010,0.07321972,68288.0,68280.0,0.40210371]
[1771691278386,0.07321829,68289.0,68281.0,0.07322639]
[1771691278603,0.00316,68290.0,68281.0,0.02471873]
[1771691278804,0.07321831,68289.0,68283.0,0.02471873]
[1771691279010,0.001,68288.0,68283.0,0.02471873]
[1771691279748,0.0732183,68289.0,68283.0,0.02471873]
[1771691279894,0.07637726,68290.0,68283.0,0.02471873]
[1771691280440,0.00316,68290.0,68283.0,0.02471873]
[1771691280737,0.29284525,68296.0,68286.0,0.02471873]
[1771691281161,0.07321312,68294.0,68286.0,0.02471873]
[1771691281364,0.0002,68288.0,68286.0,0.02471873]
[1771691281735,0.07321312,68294.0,68286.0,0.0732212]
[1771691281955,0.07321094,68296.0,68286.0,0.07322053]
[1771691282213,0.07321094,68296.0,68287.0,0.02471873]
[1771691282403,0.0002925,68299.0,68282.0,0.29289977]
[1771691282404,0.0002925,68299.0,68291.0,0.0732155]
[1771691282611,0.0002925,68299.0,68292.0,0.02471873]
[1771691283127,0.0002925,68299.0,68294.0,0.07321271]
[1771691283335,0.0002925,68299.0,68294.0,0.07321242]
[1771691283777,0.0002925,68299.0,68294.0,0.09793115]
[1771691283985,0.0002925,68299.0,68295.0,0.0732118]
[1771691284181,0.00040937,68299.0,68297.0,0.02471873]
[1771691284387,0.00336,68300.0,68297.0,0.09792833]
[1771691284591,0.0260932,68310.0,68298.0,0.07320761]
[1771691284803,0.07319888,68308.0,68297.0,0.0732094]
[1771691285005,0.07319986,68307.0,68298.0,0.07320781]
[1771691285324,0.28844898,68298.0,68284.0,0.02471873]
[1771691285523,0.07645452,68298.0,68290.0,0.07321671]
[1771691285727,0.07321083,68296.0,68288.0,0.07321885]
[1771691286634,0.07321195,68295.0,68287.0,0.07322013]
[1771691288052,0.07320858,68298.0,68286.0,0.07322117]
[1771691288265,0.0229332,68296.0,68283.0,0.07453821]
[1771691288474,0.07322229,68287.0,68280.0,0.00016]
[1771691288879,0.07321963,68288.0,68280.0,0.07338769]
[1771691289077,0.07321854,68289.0,68281.0,0.07322667]
[1771691291302,0.07321947,68288.0,68280.0,0.07338781]
[1771691291663,0.07321854,68289.0,68281.0,0.07322662]
[1771691291844,0.0229332,68290.0,68280.0,0.00016]
[1771691292049,0.00016,68290.0,68285.0,0.07322163]
[1771691292284,0.00011681,68296.0,68271.0,0.02337744]
[1771691292472,0.00011681,68296.0,68281.0,0.28247706]
[1771691292680,0.00011681,68296.0,68288.0,0.02337744]
[1771691292881,0.07321192,68295.0,68288.0,0.02337744]
[1771691293319,0.00011681,68296.0,68283.0,0.07322424]
[1771691293627,0.07321765,68290.0,68282.0,0.07322553]
[1771691293848,0.0732118,68295.0,68279.0,0.07322793]
[1771691293964,0.07321519,68292.0,68284.0,0.07322358]
[1771691295394,0.07321626,68291.0,68283.0,0.0732244]
[1771691295628,0.07322183,68286.0,68278.0,0.07322968]
[1771691295826,0.07322045,68287.0,68279.0,0.07322882]
[1771691296158,0.07321953,68288.0,68281.0,0.00022]
[1771691296397,0.07322039,68287.0,68281.0,0.00022]
[1771691297204,0.16489376,68290.0,68284.0,0.07322349]
[1771691297326,0.00324511,68292.0,68284.0,0.07322349]
[1771691297537,0.07321501,68292.0,68284.0,0.07322349]
[1771691298609,0.07321501,68292.0,68284.0,0.07422349]
[1771691298827,0.07321501,68292.0,68284.0,0.07322349]
[1771691298988,0.07321449,68293.0,68284.0,0.07322349]
[1771691299188,0.00016,68290.0,68274.0,0.02359744]
[1771691299392,0.00016,68290.0,68240.0,0.0004701]
[1771691299393,0.07323968,68269.0,68240.0,0.0004701]
[1771691299598,0.23814087,68263.0,68254.0,0.31213338]
[1771691299806,0.07324719,68262.0,68254.0,0.31213338]
[1771691299996,0.07324966,68260.0,68254.0,0.31213338]
[1771691300458,0.07324966,68260.0,68254.0,0.31252326]
[1771691301132,0.40303364,68264.0,68250.0,0.00016]
[1771691301336,0.16489376,68260.0,68250.0,0.00016]
[1771691301509,0.07325699,68253.0,68250.0,0.00016]
[1771691303010,0.07325699,68253.0,68250.0,0.00116]
[1771691303331,0.07325799,68252.0,68250.0,0.00116]
[1771691303718,0.07325687,68253.0,68250.0,0.00116]
[1771691304513,0.29296605,68268.0,68251.0,0.31213338]
[1771691304729,0.07325308,68257.0,68251.0,0.31213338]
[1771691306320,0.07325365,68256.0,68251.0,0.33713338]
[1771691306524,0.07325365,68256.0,68251.0,0.33813338]
[1771691306701,0.07325365,68256.0,68251.0,0.33713338]
[1771691307102,0.07325365,68256.0,68250.0,0.00016]
[1771691307324,0.16489376,68261.0,68250.0,0.00016]
[1771691307449,0.07325527,68255.0,68250.0,0.00016]
[1771691307668,0.0732558,68254.0,68250.0,0.00016]
[1771691308097,0.0732558,68254.0,68251.0,0.001]
[1771691308289,0.0732558,68254.0,68250.0,0.00016]
[1771691308654,0.0732558,68254.0,68250.0,0.00116]
[1771691308862,0.0732558,68254.0,68250.0,0.00016]
[1771691309273,0.0732558,68254.0,68251.0,0.001]
[1771691309513,0.0732558,68254.0,68250.0,0.00016]
[1771691309929,0.29296018,68269.0,68251.0,0.31213338]
[1771691310084,0.29296018,68269.0,68250.0,0.00116]
[1771691310085,0.07324813,68262.0,68255.0,0.025]
[1771691310291,0.07324453,68265.0,68256.0,0.33713338]
[1771691310490,0.0732458,68264.0,68258.0,0.31205552]
[1771691310847,0.07324719,68262.0,68260.0,0.29740661]
[1771691310983,0.07324626,68263.0,68261.0,0.025]
[1771691311189,0.07324626,68263.0,68261.0,0.30747706]
[1771691311619,0.0002,68262.0,68261.0,0.30747706]
[1771691311830,0.07344719,68262.0,68261.0,0.025]
[1771691312035,0.07324915,68261.0,68251.0,0.28247706]
[1771691312232,0.02296,68268.0,68256.0,0.07325293]
[1771691312512,0.07324578,68264.0,68261.0,0.001]
[1771691312715,0.07324578,68264.0,68256.0,0.07325293]
[1771691312968,0.07324578,68264.0,68256.0,0.35572999]
[1771691313260,0.00016,68270.0,68260.0,0.02290851]
[1771691313261,0.07324256,68267.0,68260.0,0.02290851]
[1771691313559,0.07324478,68265.0,68263.0,0.28247706]
[1771691313738,0.07324256,68267.0,68263.0,0.28247706]
[1771691314754,0.07324256,68267.0,68263.0,0.28347706]
[1771691314982,0.07324313,68266.0,68263.0,0.28247706]
[1771691315185,0.07324298,68266.0,68263.0,0.28347706]
[1771691315694,0.07324432,68265.0,68263.0,0.28347706]
[1771691315891,0.07324504,68264.0,68263.0,0.28347706]
[1771691316094,0.07324504,68264.0,68261.0,0.28247706]
[1771691316595,0.07324641,68263.0,68261.0,0.28247706]
[1771691316770,0.07324641,68263.0,68260.0,0.02290851]
[1771691317094,0.07324641,68263.0,68260.0,0.30538557]
[1771691318378,0.07324641,68263.0,68260.0,0.30638557]
[1771691318580,0.07324432,68265.0,68260.0,0.30638557]
[1771691318895,0.07324432,68265.0,68260.0,0.28347706]
[1771691319196,0.07324432,68265.0,68262.0,0.30685962]
[1771691319561,0.07324432,68265.0,68262.0,0.33093187]
[1771691320108,0.07344312,68266.0,68262.0,0.33093187]
[1771691320301,0.07339875,68270.0,68262.0,0.30685962]
[1771691320535,0.00016,68270.0,68263.0,0.07324606]
[1771691320735,0.00016,68270.0,68253.0,0.00022]
[1771691320736,0.00016,68270.0,68260.0,0.16489376]
[1771691320911,0.07323737,68272.0,68265.0,0.33093187]
[1771691321494,0.07323773,68271.0,68265.0,0.33093187]
[1771691321940,0.02296,68281.0,68266.0,0.30685962]
[1771691322156,0.02296,68281.0,68267.0,0.38009935]
[1771691322157,0.0732335,68275.0,68267.0,0.38009935]
[1771691322444,0.29288781,68286.0,68269.0,0.0973112]
[1771691322445,0.07323117,68277.0,68269.0,0.0973112]
[1771691322682,0.07323117,68277.0,68270.0,0.30685962]
[1771691322859,0.0732308,68278.0,68270.0,0.30685962]
[1771691323158,0.07323401,68275.0,68270.0,0.30685962]
[1771691323466,0.07323401,68275.0,68269.0,0.02407225]
[1771691324219,0.0732345,68274.0,68269.0,0.02407225]
[1771691324829,0.07323401,68276.0,68269.0,0.02407225]
[1771691325006,0.07323401,68276.0,68269.0,0.33093187]
[1771691325407,0.02296,68282.0,68269.0,0.33093187]
[1771691325408,0.07322239,68286.0,68276.0,0.07323147]
[1771691325613,0.00016,68290.0,68270.0,0.16505376]
[1771691325814,0.07321826,68289.0,68281.0,0.30685962]
[1771691326014,0.07321836,68289.0,68281.0,0.3800861]
[1771691326282,0.07321836,68289.0,68281.0,0.30685962]
[1771691326689,0.07321943,68288.0,68281.0,0.30685962]
[1771691327348,0.00011681,68289.0,68281.0,0.33093187]
[1771691327535,0.07321933,68288.0,68281.0,0.33093187]
[1771691328698,0.07322045,68287.0,68281.0,0.33093187]
[1771691328936,0.07322045,68287.0,68279.0,0.07322808]
[1771691329078,0.07322352,68285.0,68276.0,0.07323191]
[1771691329479,0.07322416,68284.0,68276.0,0.38009153]
[1771691329804,0.07322416,68284.0,68277.0,0.30685962]
[1771691330541,0.07322192,68286.0,68278.0,0.07322998]
[1771691331571,0.07322192,68286.0,68278.0,0.3800896]
[1771691333313,0.0002,68284.0,68278.0,0.3800896]
[1771691335160,0.0002,68284.0,68278.0,0.30685962]
[1771691336303,0.0002,68284.0,68278.0,0.30785962]
[1771691336500,0.07322957,68279.0,68270.0,0.07339836]
[1771691336643,0.07322957,68279.0,68271.0,0.07323697]
[1771691336849,0.07322752,68281.0,68263.0,0.00022]
[1771691336850,0.02296,68275.0,68263.0,0.00022]
[1771691337086,0.18785376,68273.0,68263.0,0.00022]
[1771691337295,0.07324045,68269.0,68263.0,0.00022]
[1771691337501,0.23813022,68273.0,68263.0,0.00022]
[1771691337733,0.07324372,68266.0,68260.0,0.00016]
[1771691337870,0.073242,68267.0,68260.0,0.00016]
[1771691338292,0.29307193,68280.0,68265.0,0.07324324]
[1771691338492,0.07323769,68271.0,68262.0,0.07324713]
[1771691338694,0.07324046,68269.0,68261.0,0.33093187]
[1771691338920,0.07324046,68269.0,68261.0,0.40418001]
[1771691339063,0.07323861,68270.0,68262.0,0.07324714]
[1771691339491,0.07323992,68269.0,68261.0,0.40418001]
[1771691339859,0.23813236,68271.0,68262.0,0.07324669]
[1771691340291,0.0732386,68271.0,68262.0,0.07324669]
[1771691340926,0.0732386,68271.0,68263.0,0.07324604]
[1771691341673,0.0732389,68270.0,68260.0,0.00016]
[1771691341905,0.07324165,68268.0,68260.0,0.00016]
[1771691342366,0.07324182,68267.0,68260.0,0.00016]
[1771691342568,0.07324127,68268.0,68260.0,0.00016]
[1771691342710,0.02296,68269.0,68261.0,0.07324817]
[1771691343108,0.07323888,68270.0,68261.0,0.07324817]
[1771691343531,0.02296,68276.0,68266.0,0.07324278]
[1771691343732,0.29290389,68282.0,68264.0,0.38010394]
[1771691343733,0.07323527,68274.0,68264.0,0.38010394]
[1771691343950,0.0732367,68272.0,68264.0,0.38010394]
[1771691344153,0.0732377,68271.0,68263.0,0.09731638]
[1771691344353,0.07323674,68272.0,68264.0,0.07324492]
[1771691344553,0.07323674,68272.0,68265.0,0.07324391]
[1771691344755,0.07323674,68272.0,68264.0,0.07324482]
[1771691344984,0.07323566,68273.0,68265.0,0.07324378]
[1771691347334,0.00011679,68274.0,68267.0,0.38010042]
[1771691347531,0.00011679,68274.0,68267.0,0.30685962]
[1771691347838,0.00011679,68274.0,68269.0,0.07323939]
[1771691348733,0.00011679,68274.0,68270.0,0.30597216]
[1771691349483,0.07323227,68276.0,68269.0,0.07323939]
[1771691349690,0.00016,68280.0,68272.0,0.33012513]
[1771691349889,0.00016,68280.0,68272.0,0.33024192]
[1771691350087,0.07323139,68277.0,68272.0,0.33024192]
[1771691351132,0.07323106,68279.0,68272.0,0.33024192]
[1771691351452,0.07323026,68278.0,68272.0,0.33024192]
[1771691351930,0.07322915,68279.0,68272.0,0.33024192]
[1771691352463,0.07323139,68277.0,68273.0,0.02488624]
[1771691352865,0.07323139,68277.0,68274.0,0.28651651]
[1771691353202,0.07323025,68278.0,68273.0,0.31140275]
[1771691353409,0.00016,68280.0,68273.0,0.31140275]
[1771691353610,0.07322665,68282.0,68274.0,0.28651651]
[1771691353931,0.29309691,68284.0,68274.0,0.28651651]
[1771691354131,0.07322916,68279.0,68273.0,0.02488624]
[1771691355133,0.07322715,68281.0,68273.0,0.02488624]
[1771691355546,0.07322933,68279.0,68273.0,0.02488624]
[1771691355883,0.29309691,68284.0,68273.0,0.38463814]
[1771691356088,0.0002,68284.0,68273.0,0.38463814]
[1771691356287,0.07322757,68281.0,68273.0,0.31140275]
[1771691358415,0.07322966,68279.0,68273.0,0.31140275]
[1771691358613,0.07322966,68279.0,68273.0,0.02488624]
[1771691358810,0.07342988,68280.0,68273.0,0.02488624]
[1771691359150,0.07342791,68280.0,68273.0,0.02488624]
[1771691359697,0.02286545,68287.0,68273.0,0.31140275]
[1771691359893,0.07322457,68284.0,68276.0,0.28651651]
[1771691360050,0.07322457,68284.0,68277.0,0.02488624]
[1771691360251,0.07322353,68285.0,68277.0,0.02488624]
[1771691360252,0.07322483,68283.0,68277.0,0.02488624]
[1771691360443,0.07321868,68289.0,68277.0,0.02488624]
[1771691360644,0.07322171,68286.0,68279.0,0.02488624]
[1771691361296,0.07322179,68286.0,68279.0,0.02488624]
[1771691361653,0.07322179,68286.0,68279.0,0.02293583]
[1771691361855,0.46895044,68290.0,68282.0,0.28651651]
[1771691361856,0.17608,68290.0,68282.0,0.28651651]
[1771691362059,0.17608,68290.0,68284.0,0.0732234]
[1771691362460,0.17608,68290.0,68282.0,0.31140275]
[1771691362665,0.17608,68290.0,68283.0,0.07322382]
[1771691365978,0.17628,68290.0,68283.0,0.07322382]
[1771691366750,0.07321407,68293.0,68282.0,0.02488624]
[1771691366961,0.07321581,68292.0,68283.0,0.07322466]
[1771691367746,0.07321581,68292.0,68283.0,0.38462741]
[1771691367963,0.07321581,68292.0,68284.0,0.07322342]
[1771691368338,0.07321377,68294.0,68284.0,0.07322342]
[1771691368538,0.07321377,68294.0,68285.0,0.38462527]
[1771691368764,0.07321411,68293.0,68285.0,0.38462527]
[1771691369377,0.07321411,68293.0,68285.0,0.09810876]
[1771691372899,0.07321501,68292.0,68284.0,0.07322356]
[1771691373470,0.07321804,68290.0,68282.0,0.07322518]
[1771691375323,0.07321473,68293.0,68281.0,0.31140275]
[1771691375549,0.07321473,68293.0,68280.0,0.00016]
[1771691375550,0.0001215,68295.0,68288.0,0.07321854]
[1771691376089,0.0001215,68295.0,68289.0,0.09810438]
[1771691376290,0.07320439,68302.0,68293.0,0.07321322]
[1771691376487,0.07320757,68299.0,68290.0,0.00016]
[1771691376755,0.02286545,68304.0,68290.0,0.00016]
[1771691376953,0.000195,68305.0,68291.0,0.07321605]
[1771691377148,0.29281105,68304.0,68292.0,0.09810033]
[1771691377345,0.07320615,68301.0,68293.0,0.0732138]
[1771691377778,0.07320699,68300.0,68292.0,0.38461755]
[1771691378393,0.07320571,68301.0,68293.0,0.07321392]
[1771691378520,0.07320571,68301.0,68293.0,0.09669958]
[1771691378918,0.07320646,68300.0,68293.0,0.09669958]
[1771691379172,0.07320646,68300.0,68293.0,0.02348566]
[1771691379347,0.0002,68295.0,68293.0,0.32131777]
[1771691379556,0.0002,68295.0,68294.0,0.32131777]
[1771691379717,0.07320455,68302.0,68295.0,0.02348566]
[1771691379929,0.07320455,68302.0,68291.0,0.02348566]
[1771691380152,0.07320336,68303.0,68293.0,0.02348566]
[1771691380354,0.07320336,68303.0,68294.0,0.09669646]
[1771691380580,0.07320336,68303.0,68295.0,0.02348566]
[1771691380783,0.07320336,68303.0,68295.0,0.09669708]
[1771691381009,9.131e-05,68304.0,68295.0,0.02348566]
[1771691381210,9.131e-05,68304.0,68295.0,0.3163299]
[1771691381418,9.131e-05,68304.0,68297.0,0.0732093]
[1771691381629,9.131e-05,68304.0,68290.0,0.00016]
[1771691381630,0.000195,68305.0,68298.0,0.09669398]
[1771691381844,0.07339703,68305.0,68298.0,0.02348566]
[1771691382186,0.000195,68305.0,68298.0,0.09669421]
[1771691382508,0.000195,68305.0,68299.0,0.07320716]
[1771691382709,0.00316,68320.0,68304.0,0.29280862]
[1771691382910,0.07318785,68318.0,68304.0,0.02357697]
[1771691383048,0.07318917,68317.0,68309.0,0.07319658]
[1771691383440,0.07318825,68317.0,68310.0,0.02348566]
[1771691383637,0.07338521,68316.0,68307.0,0.07319863]
[1771691383765,0.07319144,68314.0,68306.0,0.0966855]
[1771691383964,0.073192,68314.0,68306.0,0.09668563]
[1771691384163,0.07319248,68315.0,68306.0,0.02348566]
[1771691384371,0.07319143,68314.0,68306.0,0.02348566]
[1771691384984,0.07319274,68313.0,68306.0,0.02348566]
[1771691385689,0.000195,68316.0,68301.0,0.07320332]
[1771691385898,0.07320077,68306.0,68292.0,0.02348566]
[1771691386136,0.09700182,68306.0,68298.0,0.07320765]
[1771691386465,0.02380105,68306.0,68299.0,0.07320744]
[1771691386602,0.07319921,68307.0,68299.0,0.07320744]
[1771691386949,0.07335596,68310.0,68300.0,0.07320627]
[1771691387170,0.07319679,68309.0,68300.0,0.07320627]
[1771691387301,0.07319679,68309.0,68301.0,0.07320487]
[1771691387497,0.07319679,68309.0,68302.0,0.07320421]
[1771691387704,0.07335601,68310.0,68302.0,0.07320421]
[1771691388036,0.00016,68310.0,68304.0,0.07320141]
[1771691388551,0.07319374,68312.0,68306.0,0.02348566]
[1771691389272,0.00316,68320.0,68301.0,0.29783211]
[1771691389756,0.000195,68327.0,68318.0,0.09667218]
[1771691390161,0.000195,68327.0,68318.0,0.02348566]
[1771691390162,0.07318007,68325.0,68318.0,0.02348566]
[1771691390460,0.07318082,68324.0,68318.0,0.02348566]
[1771691390639,0.07337271,68327.0,68318.0,0.02348566]
[1771691391235,0.000195,68327.0,68318.0,0.02348566]
[1771691391425,0.000195,68327.0,68319.0,0.02348566]
[1771691391625,0.000195,68327.0,68322.0,0.07318283]
[1771691391841,0.00316,68330.0,68317.0,0.29783211]
[1771691392029,0.00316,68330.0,68324.0,0.07317975]
[1771691392264,0.07317087,68334.0,68326.0,0.02348566]
[1771691392442,0.07317078,68334.0,68327.0,0.02348566]
[1771691392643,0.073168,68336.0,68327.0,0.37100931]
[1771691392884,0.0731706,68334.0,68327.0,0.00038949]
[1771691393024,0.00339672,68338.0,68328.0,0.07317636]
[1771691393025,0.07316778,68337.0,68328.0,0.07317636]
[1771691393230,0.000207,68334.0,68328.0,0.09666202]
[1771691393430,0.000207,68334.0,68330.0,0.02348566]
[1771691393867,0.07337707,68334.0,68323.0,0.07318127]
[1771691394179,0.0731724,68332.0,68323.0,0.07318079]
[1771691394592,0.0002,68327.0,68323.0,0.07318079]
[1771691394785,0.0002,68327.0,68324.0,0.07318058]
[1771691395450,0.000407,68327.0,68324.0,0.07318058]
[1771691395580,0.000407,68327.0,68311.0,0.29783211]
[1771691395787,0.07358468,68327.0,68319.0,0.07318517]
[1771691396767,0.000407,68327.0,68321.0,0.07318345]
[1771691397671,0.000407,68327.0,68320.0,0.07318485]
[1771691397919,0.000407,68327.0,68319.0,0.07318558]
[1771691398662,0.000407,68327.0,68318.0,0.02348566]
[1771691399142,0.000407,68327.0,68320.0,0.07318405]
[1771691400481,0.000407,68327.0,68322.0,0.07318262]
[1771691401288,0.000407,68327.0,68319.0,0.07318608]
[1771691401491,0.07318111,68324.0,68316.0,0.07318925]
[1771691401818,0.000407,68327.0,68310.0,0.00016]
[1771691402126,0.000407,68327.0,68322.0,0.07318283]
[1771691402818,0.07333505,68330.0,68311.0,0.00022]
[1771691402819,0.00016,68330.0,68324.0,0.07318063]
[1771691403348,0.00016,68330.0,68323.0,0.0731815]
[1771691403548,0.00058949,68334.0,68323.0,0.29783211]
[1771691403672,0.00058949,68334.0,68328.0,0.07317625]
[1771691403878,0.07636778,68338.0,68329.0,0.07317466]
[1771691404097,0.07636778,68338.0,68330.0,0.07317426]
[1771691404098,0.00032858,68337.0,68330.0,0.07317426]
[1771691404305,0.07349543,68337.0,68329.0,0.39449243]
[1771691404705,0.07349559,68337.0,68330.0,0.07317384]
[1771691404989,0.07349559,68337.0,68330.0,0.0966595]
[1771691405192,0.07349559,68337.0,68331.0,0.02348566]
[1771691406022,0.00316,68340.0,68331.0,0.02348566]
[1771691406275,0.02336911,68338.0,68332.0,0.09665683]
[1771691406475,0.02336911,68338.0,68334.0,0.07316927]
[1771691406681,0.00316,68340.0,68335.0,0.0731687]
[1771691407842,0.00316,68340.0,68333.0,0.02348566]
[1771691408046,0.07632397,68340.0,68333.0,0.09665649]
[1771691408253,0.07316975,68335.0,68327.0,0.07317714]
[1771691408537,0.07316975,68335.0,68327.0,0.07356663]
[1771691408865,0.0731727,68332.0,68327.0,0.00038949]
[1771691409066,0.29266454,68338.0,68327.0,0.00038949]
[1771691409378,0.07317192,68333.0,68327.0,0.00038949]
[1771691409899,0.07317231,68332.0,68327.0,0.00038949]
[1771691410245,0.07317192,68334.0,68327.0,0.00038949]
[1771691412971,0.07317192,68334.0,68322.0,0.2927297]
[1771691412972,0.2971043,68335.0,68315.0,0.02388109]
[1771691413201,0.0731793,68326.0,68315.0,0.09707101]
[1771691413439,0.07318194,68323.0,68316.0,0.07318905]
[1771691413627,0.07318165,68324.0,68316.0,0.07318905]
[1771691413834,0.07318165,68324.0,68315.0,0.02388109]
[1771691413835,0.2971043,68328.0,68311.0,0.00022]
[1771691414032,0.0731856,68320.0,68311.0,0.0734138]
[1771691414258,0.0731854,68320.0,68311.0,0.07341433]
[1771691414471,0.0958241,68319.0,68311.0,0.07341433]
[1771691414599,0.07318736,68318.0,68311.0,0.00022]
[1771691414789,0.07318736,68318.0,68311.0,0.0734145]
[1771691415405,0.07318736,68318.0,68311.0,0.00022]
[1771691415605,0.07318842,68317.0,68310.0,0.17596]
[1771691416011,0.07318949,68316.0,68310.0,0.17596]
[1771691416234,0.07318842,68317.0,68310.0,0.17596]
[1771691417152,0.07318452,68321.0,68312.0,0.07319284]
[1771691417361,0.07318452,68321.0,68314.0,0.07319134]
[1771691417565,0.07318452,68321.0,68313.0,0.07319218]
[1771691417729,0.07318527,68320.0,68312.0,0.09707393]
[1771691418069,0.07318527,68320.0,68313.0,0.07319239]
[1771691419163,0.07318527,68320.0,68312.0,0.09707445]
[1771691419733,0.02263779,68320.0,68310.0,0.00022]
[1771691419931,0.07319462,68313.0,68305.0,0.07320081]
[1771691420131,0.02263779,68317.0,68309.0,0.07319667]
[1771691420653,0.07318929,68316.0,68308.0,0.07340955]
[1771691420834,0.00016,68320.0,68313.0,0.07319167]
[1771691421035,0.07334506,68320.0,68313.0,0.07330921]
[1771691421257,0.07334506,68320.0,68313.0,0.00011678]
[1771691421641,0.0731861,68319.0,68313.0,0.00011678]
[1771691423164,0.07334506,68320.0,68308.0,0.0002118]
[1771691423165,0.07318929,68316.0,68308.0,0.0002118]
[1771691423360,0.07318929,68316.0,68308.0,0.07352647]
[1771691423731,0.07319047,68315.0,68308.0,0.07352647]
[1771691423970,0.07319047,68315.0,68308.0,0.00032865]
[1771691424174,0.0731915,68314.0,68308.0,0.00032865]
[1771691424480,0.073193,68313.0,68308.0,0.00032865]
[1771691424680,0.07319047,68315.0,68308.0,0.00032865]
[1771691425057,0.07319047,68315.0,68308.0,0.0735265]
[1771691425603,0.07318866,68317.0,68308.0,0.0735265]
[1771691426301,0.02263779,68318.0,68308.0,0.00032865]
[1771691426506,0.16488424,68320.0,68304.0,0.00022]
[1771691426507,0.07319679,68310.0,68304.0,0.00022]
[1771691426733,0.0733107,68310.0,68304.0,0.00022]
[1771691426875,0.00011391,68310.0,68304.0,0.00022]
[1771691427099,0.00011391,68310.0,68308.0,0.00022]
[1771691427587,0.00011391,68310.0,68304.0,0.00022]
[1771691428113,0.00011391,68310.0,68301.0,0.00022]
[1771691428274,0.0731994,68307.0,68300.0,0.00016]
[1771691428502,0.07320077,68306.0,68300.0,0.00016]
[1771691428693,0.0731994,68307.0,68300.0,0.00016]
[1771691428888,0.07320094,68307.0,68300.0,0.00016]
[1771691429090,0.07320179,68305.0,68300.0,0.00016]
[1771691429347,0.07319811,68308.0,68300.0,0.00016]
[1771691429555,0.09583513,68309.0,68301.0,0.0732052]
[1771691429683,0.07319734,68309.0,68301.0,0.0732052]
[1771691431797,0.00011391,68310.0,68300.0,0.00016]
[1771691431997,0.07330999,68310.0,68300.0,0.0733663]
[1771691432200,0.07319679,68309.0,68301.0,0.07320461]
[1771691432417,0.29289898,68310.0,68300.0,0.00016]
[1771691432638,0.07320193,68305.0,68300.0,0.00016]
[1771691432838,0.07319926,68307.0,68300.0,0.00016]
[1771691433043,0.07319802,68308.0,68300.0,0.00016]
[1771691433595,0.02263779,68304.0,68296.0,0.0004318]
[1771691434050,0.07319955,68307.0,68297.0,0.07320938]
[1771691434248,0.07320071,68306.0,68298.0,0.07320777]
[1771691434497,0.07320143,68305.0,68297.0,0.07320938]
[1771691434740,0.07320024,68306.0,68298.0,0.07320813]
[1771691435162,0.07320024,68306.0,68301.0,0.00022]
[1771691435948,0.31569702,68310.0,68301.0,0.00022]
[1771691435949,0.00027391,68310.0,68302.0,0.07320357]
[1771691436363,0.07319752,68309.0,68301.0,0.07342522]
[1771691436656,0.07319872,68308.0,68301.0,0.00022]
[1771691437441,0.00027391,68310.0,68301.0,0.00022]
[1771691437647,0.02476048,68310.0,68301.0,0.00022]
[1771691438543,0.07319973,68307.0,68301.0,0.00022]
[1771691439805,0.07320008,68306.0,68301.0,0.00022]
[1771691440185,0.07319973,68307.0,68301.0,0.00022]
[1771691440414,0.07320012,68306.0,68301.0,0.00022]
[1771691441104,0.07319679,68309.0,68301.0,0.00022]
[1771691441299,0.02476048,68310.0,68296.0,0.0004318]
[1771691441300,0.00027391,68310.0,68296.0,0.0004318]
[1771691441514,0.0732045,68302.0,68296.0,0.0004318]
[1771691441682,0.04520222,68302.0,68294.0,0.07201625]
[1771691441863,0.09769004,68303.0,68295.0,0.07321178]
[1771691443105,0.09769004,68303.0,68301.0,0.00022]
[1771691444098,0.07320429,68302.0,68301.0,0.00022]
[1771691444952,0.07320429,68302.0,68290.0,0.00016]
[1771691444953,0.07321337,68294.0,68290.0,0.00016]
[1771691445144,0.00027391,68310.0,68280.0,0.00016]